bitfinex-derivatives/quotes_BTCF0:USTF0_20250729
["timestamp","ask_amount","ask_price","bid_price","bid_amount"]
[1753798331747,0.5419311,118210.0,118200.0,0.9959558]
[1753798332242,0.5419311,118210.0,118200.0,1.0669158]
[1753798332443,0.5429311,118210.0,118200.0,1.0669158]
[1753798333041,0.4214511,118210.0,118200.0,1.0669158]
[1753798333252,0.2822011,118210.0,118200.0,1.40524117]
[1753798333651,0.003,118210.0,118200.0,1.76604117]
[1753798333946,0.553,118210.0,118200.0,1.76604117]
[1753798334142,0.003,118210.0,118200.0,1.76604117]
[1753798334452,0.5579111,118210.0,118200.0,0.9102959]
[1753798334643,0.5579111,118210.0,118200.0,1.0622359]
[1753798334842,0.5579111,118210.0,118200.0,1.4230359]
[1753798335641,0.5579111,118210.0,118200.0,1.2538205]
[1753798335952,0.5579111,118210.0,118200.0,0.7410805]
[1753798336357,0.5579111,118210.0,118200.0,0.8241705]
[1753798336548,0.5579111,118210.0,118200.0,0.9933859]
[1753798336749,0.5579111,118210.0,118200.0,0.8929405]
[1753798337060,0.5579111,118210.0,118200.0,1.0621559]
[1753798337446,0.5579111,118210.0,118200.0,1.0621159]
[1753798337643,0.5579111,118210.0,118200.0,0.8929005]
[1753798338352,0.5579111,118210.0,118200.0,0.7409605]
[1753798338747,0.5579111,118210.0,118200.0,0.0064405]
[1753798338954,0.5579111,118210.0,118200.0,0.73452]
[1753798339354,0.5579111,118210.0,118200.0,0.9869056]
[1753798339944,0.9187111,118210.0,118200.0,1.0556756]
[1753798340148,0.2922011,118210.0,118200.0,1.4164756]
[1753798341056,0.123,118210.0,118200.0,1.75480097]
[1753798341257,0.7122011,118210.0,118200.0,1.75480097]
[1753798342459,0.7122012,118210.0,118200.0,1.75460097]
[1753798342661,0.7122012,118210.0,118200.0,1.42269197]
[1753798343463,0.9072512,118210.0,118200.0,1.42269197]
[1753798344065,0.73805,118210.0,118200.0,1.42269197]
[1753798344358,0.69115,118210.0,118200.0,1.42269197]
[1753798344564,0.69115,118210.0,118200.0,1.42257197]
[1753798347259,0.123,118210.0,118200.0,1.42257197]
[1753798347459,0.123,118210.0,118200.0,1.76089734]
[1753798347758,0.730011,118210.0,118200.0,1.42257197]
[1753798347957,0.730011,118210.0,118200.0,0.76928038]
[1753798348162,0.730011,118210.0,118200.0,1.50332038]
[1753798348362,0.7300111,118210.0,118200.0,1.50332038]
[1753798348863,0.123,118210.0,118200.0,1.50332038]
[1753798349265,0.123,118210.0,118200.0,1.84164575]
[1753798350463,0.123,118210.0,118200.0,1.50332038]
[1753798352067,0.123,118210.0,118200.0,1.84164575]
[1753798352764,0.113,118210.0,118200.0,1.84164575]
[1753798353665,0.113,118210.0,118200.0,1.50332038]
[1753798354370,0.113,118210.0,118200.0,1.84164575]
[1753798357672,0.003,118210.0,118200.0,1.84164575]
[1753798359670,0.6069788,118240.0,118230.0,0.4592723]
[1753798359871,0.7269788,118240.0,118230.0,1.5535123]
[1753798360069,0.7269788,118240.0,118230.0,1.55467071]
[1753798360270,0.7269788,118240.0,118230.0,1.19387071]
[1753798360469,0.7269788,118240.0,118230.0,1.02469841]
[1753798361266,0.7269788,118240.0,118230.0,1.55467091]
[1753798361465,0.7269788,118240.0,118230.0,1.55567091]
[1753798361664,0.7269788,118240.0,118230.0,1.19487091]
[1753798361869,0.7269788,118240.0,118230.0,1.55567091]
[1753798362467,0.7269682,118240.0,118230.0,1.55567091]
[1753798362676,0.7269682,118240.0,118230.0,1.19487091]
[1753798363572,0.7269682,118240.0,118230.0,0.29225841]
[1753798363770,0.7269682,118240.0,118230.0,1.19463091]
[1753798364268,0.7269682,118240.0,118230.0,0.73531841]
[1753798364269,1.42609357,118240.0,118230.0,0.73531841]
[1753798364474,1.42609357,118240.0,118230.0,0.00215841]
[1753798364673,0.5404211,118210.0,118200.0,1.26958557]
[1753798364870,0.7454111,118210.0,118200.0,1.42301557]
[1753798365065,1.1062111,118210.0,118200.0,0.00641637]
[1753798365274,0.3451054,118200.0,118190.0,0.62765003]
[1753798365467,0.7454254,118200.0,118190.0,0.62765003]
[1753798365667,0.7454254,118200.0,118190.0,1.36077003]
[1753798365867,0.7454254,118200.0,118190.0,1.43339003]
[1753798366673,1.1654254,118200.0,118190.0,1.44025256]
[1753798369770,0.42,118200.0,118190.0,1.77857793]
[1753798369981,0.6153825,118230.0,118220.0,0.4575968]
[1753798370181,0.7453825,118230.0,118220.0,1.5513568]
[1753798370374,0.30589,118230.0,118220.0,1.5513568]
[1753798370579,0.13,118230.0,118220.0,1.5513568]
[1753798370877,0.7191725,118230.0,118220.0,1.88968217]
[1753798371280,0.554,118230.0,118220.0,1.88968217]
[1753798371578,0.114,118230.0,118220.0,1.88968217]
[1753798371781,0.114,118230.0,118220.0,1.90654167]
[1753798372081,0.004,118230.0,118220.0,1.90654167]
[1753798372472,0.114,118230.0,118220.0,1.90654167]
[1753798373178,0.005,118230.0,118220.0,1.90654167]
[1753798373882,0.104,118230.0,118220.0,1.90654167]
[1753798374381,0.004,118230.0,118220.0,1.90654167]
[1753798375580,0.36172,118260.0,118250.0,0.4030437]
[1753798375781,0.6153261,118270.0,118260.0,0.4553794]
[1753798375977,0.76685172,118270.0,118260.0,0.4553794]
[1753798376585,0.76685172,118270.0,118260.0,0.28625]
[1753798376882,0.76685172,118270.0,118260.0,0.2821894]
[1753798377083,0.76685172,118270.0,118260.0,0.4030294]
[1753798377281,0.76685172,118270.0,118260.0,0.40994621]
[1753798377874,0.76685172,118270.0,118260.0,0.24081681]
[1753798378075,0.76685211,118270.0,118260.0,0.33732621]
[1753798378296,0.32741601,118270.0,118260.0,1.22898956]
[1753798378490,0.13,118270.0,118260.0,1.22898956]
[1753798378979,0.15152677,118270.0,118260.0,1.22898956]
[1753798379173,0.15152677,118270.0,118260.0,1.23198956]
[1753798379983,0.15152532,118270.0,118260.0,1.23298956]
[1753798381083,0.14614,118280.0,118270.0,0.3027653]
[1753798381287,0.14614,118280.0,118270.0,1.88673067]
[1753798381288,0.32685261,118280.0,118270.0,1.88673067]
[1753798381487,0.27766261,118280.0,118270.0,1.88673067]
[1753798381676,0.43676361,118280.0,118270.0,1.88673067]
[1753798381882,0.56094361,118280.0,118270.0,1.5484053]
[1753798382175,0.70510361,118280.0,118270.0,1.5484053]
[1753798382379,0.02152261,118280.0,118270.0,1.5564053]
[1753798382586,0.44621,118290.0,118280.0,0.455351]
[1753798382780,0.58773122,118290.0,118280.0,0.455351]
[1753798382982,0.44621,118290.0,118280.0,0.455351]
[1753798383178,0.57621,118290.0,118280.0,0.816151]
[1753798383784,0.14416,118290.0,118280.0,1.15447637]
[1753798383978,0.07503,118300.0,118290.0,0.3027365]
[1753798383979,0.6153228,118300.0,118290.0,0.3027365]
[1753798384191,0.7368341,118300.0,118290.0,1.52566187]
[1753798384589,0.7368341,118300.0,118290.0,1.1873365]
[1753798384783,0.7368341,118300.0,118290.0,1.01825]
[1753798385291,0.7368341,118300.0,118290.0,1.1873365]
[1753798385591,0.7368341,118300.0,118290.0,1.01825]
[1753798386189,0.7368341,118300.0,118290.0,1.1873365]
[1753798386384,0.7153228,118300.0,118290.0,1.01825]
[1753798386580,0.7183228,118300.0,118290.0,1.01825]
[1753798386882,0.7183228,118300.0,118290.0,1.1873365]
[1753798388690,0.7183228,118300.0,118290.0,1.01825]
[1753798389090,0.7183228,118300.0,118290.0,1.1873367]
[1753798390595,0.7183228,118300.0,118290.0,1.1867769]
[1753798390798,0.7183228,118300.0,118290.0,1.01769]
[1753798390997,0.7183228,118300.0,118290.0,1.1867769]
[1753798391195,0.2187169,118290.0,118280.0,0.3608]
[1753798391398,0.6153112,118280.0,118270.0,0.4421]
[1753798391698,0.6153112,118280.0,118270.0,1.3898355]
[1753798391699,0.7353112,118280.0,118270.0,1.3898355]
[1753798391890,0.7353112,118280.0,118270.0,1.4182455]
[1753798392090,0.7353112,118280.0,118270.0,1.4908655]
[1753798392492,0.7353112,118280.0,118270.0,0.8049655]
[1753798392693,0.7353112,118280.0,118270.0,1.5362855]
[1753798393096,0.7363112,118280.0,118270.0,1.5362855]
[1753798393601,0.7363112,118280.0,118270.0,1.5362455]
[1753798394193,0.0845475,118290.0,118280.0,0.04704]
[1753798394401,0.5619743,118290.0,118280.0,0.5516]
[1753798394599,0.5619743,118290.0,118280.0,0.69842]
[1753798394799,0.5619743,118290.0,118280.0,0.78686]
[1753798395000,0.27655,118290.0,118280.0,0.9559611]
[1753798395197,0.429941,118310.0,118300.0,0.3803325]
[1753798395395,0.549941,118310.0,118300.0,2.0478525]
[1753798396203,0.786431,118310.0,118300.0,1.87878]
[1753798396403,0.786431,118310.0,118300.0,2.0478525]
[1753798396790,0.786431,118310.0,118300.0,2.0488524]
[1753798397900,0.786431,118310.0,118300.0,1.87978]
[1753798398202,0.786431,118310.0,118300.0,2.0488526]
[1753798398403,0.786471,118310.0,118300.0,2.0488526]
[1753798398591,0.7442037,118310.0,118300.0,2.0488526]
[1753798398797,0.50341,118310.0,118300.0,1.3197326]
[1753798399111,0.21583,118310.0,118300.0,2.38897797]
[1753798399298,0.12004,118310.0,118300.0,2.38897797]
[1753798399600,4e-05,118310.0,118300.0,2.38897797]
[1753798400206,0.12004,118310.0,118300.0,2.38897797]
[1753798400503,0.14455,118330.0,118320.0,0.1997194]
[1753798400693,0.4335838,118330.0,118320.0,1.6866594]
[1753798401802,0.4335838,118330.0,118320.0,2.02598477]
[1753798402105,0.4335838,118330.0,118320.0,1.6886594]
[1753798402499,0.4649038,118330.0,118320.0,1.6886594]
[1753798402699,0.6028738,118330.0,118320.0,1.6886594]
[1753798403606,0.6028738,118330.0,118320.0,1.30458]
[1753798403795,1.11022317,118330.0,118320.0,0.3628]
[1753798403998,1.11022317,118330.0,118320.0,1.16250464]
[1753798403999,1.36022317,118330.0,118320.0,1.16250464]
[1753798404195,0.7718978,118330.0,118320.0,1.20954464]
[1753798404401,0.6028738,118330.0,118320.0,1.20954464]
[1753798404596,0.6028738,118330.0,118320.0,1.75756844]
[1753798405404,0.6028738,118330.0,118320.0,1.58852464]
[1753798406807,0.6028738,118330.0,118320.0,1.28528464]
[1753798407302,0.6028738,118330.0,118320.0,1.20938464]
[1753798408004,0.6028738,118330.0,118320.0,1.59322844]
[1753798408312,0.5715538,118330.0,118320.0,1.59322844]
[1753798408502,0.5227938,118330.0,118320.0,1.59322844]
[1753798408708,0.4270038,118330.0,118320.0,1.59322844]
[1753798410000,0.2890338,118330.0,118320.0,1.59322844]
[1753798410603,0.6028738,118330.0,118320.0,1.42418464]
[1753798411106,0.94119917,118330.0,118320.0,1.49976464]
[1753798411510,0.6028738,118330.0,118320.0,1.49976464]
[1753798413810,0.2890338,118330.0,118320.0,1.66880864]
[1753798414310,0.2890738,118330.0,118320.0,1.66880864]
[1753798414499,0.4270438,118330.0,118320.0,1.49976464]
[1753798415214,0.6029138,118330.0,118320.0,1.58800464]
[1753798415512,0.62401929,118330.0,118320.0,1.58800464]
[1753798415716,0.96234466,118330.0,118320.0,0.40984]
[1753798416019,0.482884,118320.0,118310.0,0.3608]
[1753798416216,0.96231486,118320.0,118310.0,0.3608]
[1753798416407,1.13135486,118320.0,118310.0,0.3608]
[1753798416609,1.13135486,118320.0,118310.0,0.40784]
[1753798417415,1.13535486,118320.0,118310.0,0.40784]
[1753798417816,1.13535486,118320.0,118310.0,0.2643723]
[1753798418007,0.4829125,118300.0,118290.0,0.04704]
[1753798418213,1.32314336,118300.0,118290.0,0.04704]
[1753798418411,0.3383911,118280.0,118270.0,0.04704]
[1753798418606,0.4483911,118280.0,118270.0,0.04704]
[1753798418821,0.4483911,118280.0,118270.0,0.26184]
[1753798419110,0.4483911,118280.0,118270.0,0.62264]
[1753798419611,0.2791011,118280.0,118270.0,0.62264]
[1753798419819,0.2791011,118280.0,118270.0,1.5217154]
[1753798420509,0.2791011,118280.0,118270.0,1.86004077]
[1753798421511,0.2801011,118280.0,118270.0,1.86004077]
[1753798421912,0.2321011,118280.0,118270.0,1.86004077]
[1753798422119,0.2821011,118280.0,118270.0,1.86004077]
[1753798422315,0.19,118310.0,118280.0,0.1691011]
[1753798422507,0.2958839,118300.0,118290.0,1.86005227]
[1753798422711,0.44700287,118300.0,118290.0,2.22085227]
[1753798423328,0.02111897,118300.0,118290.0,2.22085227]
[1753798423619,0.14111897,118300.0,118290.0,2.22085227]
[1753798424214,0.31019157,118300.0,118290.0,0.98344]
[1753798424518,0.31019157,118300.0,118290.0,1.71344]
[1753798424720,0.31019157,118300.0,118290.0,1.8825268]
[1753798424909,0.52672157,118300.0,118290.0,1.71344]
[1753798425109,0.60096157,118300.0,118290.0,0.98344]
[1753798425310,0.93928694,118300.0,118290.0,1.49787]
[1753798425519,0.5798426,118300.0,118290.0,1.49787]
[1753798425820,0.5798426,118300.0,118290.0,1.73794]
[1753798426624,0.5798426,118300.0,118290.0,1.37714]
[1753798426808,0.60080698,118300.0,118290.0,1.09076]
[1753798427009,0.5798426,118300.0,118290.0,1.09076]
[1753798427215,0.91816797,118300.0,118290.0,1.09076]
[1753798427425,1.10820196,118300.0,118290.0,0.72996]
[1753798427614,1.10820196,118300.0,118280.0,0.57906]
[1753798427615,0.1690867,118290.0,118280.0,0.57906]
[1753798427815,0.5798567,118290.0,118280.0,1.30902]
[1753798428015,0.5798567,118290.0,118280.0,1.37714]
[1753798430023,0.7700567,118290.0,118280.0,1.37714]
[1753798432832,0.7700567,118290.0,118280.0,1.5462409]
[1753798433127,0.2890867,118290.0,118280.0,1.5462409]
[1753798433426,0.2890867,118290.0,118280.0,2.24536627]
[1753798434126,0.2890866,118290.0,118280.0,2.24536627]
[1753798434425,0.2890866,118290.0,118280.0,1.9070409]
[1753798435420,0.2890866,118290.0,118280.0,2.24536627]
[1753798436324,0.2890866,118290.0,118280.0,1.9070409]
[1753798436927,0.12,118290.0,118280.0,2.2628142]
[1753798439028,0.2113226,118310.0,118300.0,0.98846767]
[1753798439326,0.3213226,118310.0,118300.0,2.43982767]
[1753798439926,0.3213226,118310.0,118300.0,2.1015023]
[1753798440426,0.281058,118310.0,118300.0,2.1015023]
[1753798440956,0.281058,118310.0,118300.0,2.43982767]
[1753798441423,0.112,118310.0,118300.0,2.43982767]
[1753798441819,0.2535968,118330.0,118320.0,0.14558]
[1753798442122,0.2535968,118330.0,118320.0,1.88324]
[1753798442123,0.87555211,118330.0,118320.0,1.88324]
[1753798443123,0.87555211,118330.0,118320.0,1.88424]
[1753798443429,0.31006411,118330.0,118320.0,2.39160907]
[1753798444225,0.31006411,118330.0,118320.0,2.0532837]
[1753798444723,0.31006411,118330.0,118320.0,2.0542837]
[1753798447326,0.52659411,118330.0,118320.0,1.89236497]
[1753798447530,0.5056088,118330.0,118320.0,2.06140867]
[1753798448332,0.4570388,118330.0,118320.0,2.12995908]
[1753798448533,0.2890788,118330.0,118320.0,2.12995908]
[1753798449434,0.2890788,118330.0,118320.0,1.96091538]
[1753798449627,0.7700488,118330.0,118320.0,1.96091538]
[1753798450528,0.7700488,118330.0,118320.0,1.22411041]
[1753798450729,0.7700488,118330.0,118320.0,1.95347041]
[1753798451233,0.7700488,118330.0,118320.0,1.95339041]
[1753798452032,0.2890788,118330.0,118320.0,1.22411041]
[1753798452232,0.2890788,118330.0,118320.0,1.95335041]
[1753798452438,0.2890788,118330.0,118320.0,2.12239411]
[1753798452731,0.2890788,118330.0,118320.0,1.95335041]
[1753798452936,0.7224888,118330.0,118320.0,1.22411041]
[1753798453133,0.7224888,118330.0,118320.0,1.95331041]
[1753798453343,0.5282385,118340.0,118330.0,0.30912]
[1753798453638,0.5782385,118340.0,118330.0,1.55885]
[1753798454534,0.5782385,118340.0,118330.0,0.82965]
[1753798454732,0.91656387,118340.0,118330.0,0.46885]
[1753798454936,1.27735667,118340.0,118320.0,0.06955041]
[1753798455138,0.9390383,118340.0,118330.0,0.006]
[1753798455332,1.18913889,118340.0,118330.0,0.006]
[1753798455527,1.35814689,118340.0,118330.0,0.006]
[1753798455929,1.35814689,118340.0,118330.0,0.06079]
[1753798456127,1.35814689,118340.0,118330.0,0.05479]
[1753798456336,1.3373263,118340.0,118330.0,0.05479]
[1753798456728,1.3373263,118340.0,118330.0,0.06079]
[1753798456935,0.9765263,118340.0,118330.0,0.06079]
[1753798457134,0.9765263,118340.0,118330.0,0.39911537]
[1753798457641,0.9765263,118340.0,118330.0,0.06079]
[1753798458444,0.9765263,118340.0,118330.0,0.71042537]
[1753798458636,0.9765263,118340.0,118330.0,0.3721]
[1753798458839,0.3880383,118340.0,118330.0,1.17561537]
[1753798459037,0.3457815,118340.0,118330.0,1.34064467]
[1753798459241,0.3035249,118340.0,118330.0,1.34064467]
[1753798460539,0.3035249,118340.0,118330.0,1.33964467]
[1753798462443,0.3035249,118340.0,118330.0,1.33864467]
[1753798464738,0.0422504,118350.0,118330.0,1.14258787]
[1753798464944,0.3112511,118350.0,118340.0,1.89841537]
[1753798465446,0.4855711,118350.0,118340.0,1.89841537]
[1753798466732,0.4855711,118350.0,118340.0,2.06743037]
[1753798467845,0.4855711,118350.0,118340.0,1.89841537]
[1753798468141,0.7058411,118350.0,118340.0,1.56009]
[1753798468350,0.7058411,118350.0,118340.0,1.89821537]
[1753798469844,0.7058411,118350.0,118340.0,2.06723037]
[1753798470247,0.7058411,118350.0,118340.0,1.55989]
[1753798470448,0.7058411,118350.0,118340.0,1.89821537]
[1753798471445,0.7058411,118350.0,118340.0,1.89813537]
[1753798472048,0.7058411,118350.0,118340.0,1.16961537]
[1753798472248,0.7058411,118350.0,118340.0,1.89805537]
[1753798472445,0.7058411,118350.0,118340.0,1.55973]
[1753798472845,0.7058411,118350.0,118340.0,1.89805537]
[1753798473042,0.7058411,118350.0,118340.0,1.55973]
[1753798473346,0.7287211,118350.0,118340.0,1.21952]
[1753798473643,0.7287211,118350.0,118340.0,0.85868]
[1753798473847,0.74956096,118350.0,118340.0,0.85868]
[1753798474239,0.74956096,118350.0,118340.0,1.21948]
[1753798474441,0.74956096,118350.0,118340.0,0.13032]
[1753798474638,0.74956096,118350.0,118340.0,0.85868]
[1753798476443,0.74956096,118350.0,118340.0,1.08946]
[1753798476650,1.45003523,118350.0,118320.0,0.11834041]
[1753798476838,0.2241295,118330.0,118320.0,0.3608]
[1753798477039,0.2241437,118320.0,118310.0,0.41059]
[1753798477239,0.37499271,118320.0,118310.0,0.41059]
[1753798477445,0.54403271,118320.0,118310.0,0.3695264]
[1753798478347,0.54403271,118320.0,118310.0,0.5768064]
[1753798478546,0.54403271,118320.0,118310.0,0.7902264]
[1753798479352,1.27223271,118320.0,118310.0,0.7902264]
[1753798480948,1.27223271,118320.0,118310.0,0.7191764]
[1753798481157,1.27223271,118320.0,118310.0,0.5594464]
[1753798481756,1.10319271,118320.0,118310.0,0.5594464]
[1753798482057,1.10319271,118320.0,118310.0,0.7902264]
[1753798483460,1.0823437,118320.0,118310.0,0.7902264]
[1753798483959,1.0823437,118320.0,118310.0,0.3197364]
[1753798484157,1.0823437,118320.0,118310.0,0.3648764]
[1753798484354,1.0823437,118320.0,118310.0,0.40594]
[1753798484564,1.0823437,118320.0,118310.0,0.83343]
[1753798484750,1.0823437,118320.0,118310.0,0.84343]
[1753798486958,1.0823437,118320.0,118310.0,0.48263]
[1753798487158,1.0823437,118320.0,118310.0,0.84343]
[1753798487956,1.0594637,118320.0,118310.0,0.84343]
[1753798488352,1.0591837,118320.0,118310.0,1.18175537]
[1753798488752,1.0591837,118320.0,118310.0,1.08362369]
[1753798489153,1.0820637,118320.0,118310.0,0.84343]
[1753798492550,1.32225739,118320.0,118310.0,1e-07]
[1753798492752,2.11319827,118320.0,118310.0,1e-07]
[1753798492948,2.11319827,118320.0,118280.0,1.08848]
[1753798492949,0.1690865,118290.0,118280.0,0.3402042]
[1753798493257,0.1691151,118270.0,118260.0,1.17301572]
[1753798493451,0.1691294,118260.0,118250.0,0.52843]
[1753798493758,0.4195694,118260.0,118250.0,0.71572]
[1753798493959,0.4195694,118260.0,118250.0,0.78458908]
[1753798494254,0.65976309,118260.0,118250.0,0.52843]
[1753798494661,0.4195694,118260.0,118250.0,0.68535]
[1753798494863,0.4195694,118260.0,118250.0,0.71572]
[1753798495154,0.4195694,118260.0,118250.0,0.83343]
[1753798496755,0.4195694,118260.0,118250.0,0.40594]
[1753798496963,0.4195694,118260.0,118250.0,0.3608]
[1753798497261,0.4215694,118260.0,118250.0,0.3357884]
[1753798497457,0.1691436,118250.0,118240.0,0.75536]
[1753798497654,1.1471436,118250.0,118240.0,0.47002]
[1753798497960,1.5079436,118250.0,118240.0,0.21277]
[1753798498161,1.5079436,118250.0,118230.0,0.15692]
[1753798498162,0.3095979,118240.0,118230.0,0.15692]
[1753798498451,0.5084522,118230.0,118220.0,0.47263]
[1753798498660,1.3559722,118230.0,118220.0,0.47263]
[1753798499163,0.1691865,118220.0,118210.0,0.83343]
[1753798499354,0.2791865,118220.0,118210.0,1.17157046]
[1753798499562,0.2791865,118220.0,118210.0,1.34077136]
[1753798500260,0.2791865,118220.0,118210.0,0.47263]
[1753798500454,0.9328365,118220.0,118210.0,0.47263]
[1753798500756,0.6184665,118220.0,118210.0,0.23443]
[1753798500962,0.9792665,118220.0,118210.0,0.002]
[1753798501151,2.04484696,118220.0,118210.0,0.002]
[1753798501752,1.7067065,118220.0,118210.0,0.002]
[1753798501953,1.68404696,118220.0,118210.0,0.002]
[1753798502258,1.3459065,118220.0,118210.0,0.47463]
[1753798502560,0.2791865,118220.0,118210.0,1.17557046]
[1753798502854,0.2791865,118220.0,118210.0,1.34477026]
[1753798503554,0.2791865,118220.0,118210.0,1.17557046]
[1753798503769,0.4331465,118220.0,118210.0,1.20403]
[1753798503957,0.6184665,118220.0,118210.0,1.56483]
[1753798504157,0.6184665,118220.0,118210.0,0.83743]
[1753798504466,0.3942765,118220.0,118210.0,0.83743]
[1753798504759,0.2791852,118220.0,118210.0,1.34476996]
[1753798506758,0.2791852,118220.0,118210.0,1.36156252]
[1753798507462,0.11,118220.0,118210.0,1.36156252]
[1753798507663,0.2791849,118220.0,118210.0,1.36156252]
[1753798507861,0.2114772,118230.0,118220.0,0.4741849]
[1753798508062,0.2791833,118230.0,118220.0,2.06807536]
[1753798508259,0.2537494,118240.0,118230.0,0.5560706]
[1753798508468,0.3637494,118240.0,118230.0,1.32758106]
[1753798508764,0.3214581,118240.0,118230.0,1.32758106]
[1753798509665,0.253726,118250.0,118240.0,0.5662761]
[1753798509862,0.1268509,118260.0,118250.0,0.2417118]
[1753798510059,0.3059784,118260.0,118250.0,0.97506226]
[1753798510662,0.3524084,118260.0,118250.0,0.80592046]
[1753798510971,0.5863384,118260.0,118250.0,1.1949]
[1753798512063,0.5863384,118260.0,118250.0,0.83406]
[1753798512362,0.5863384,118260.0,118250.0,1.08788]
[1753798512562,0.5863384,118260.0,118250.0,1.08784]
[1753798512867,0.5863384,118260.0,118250.0,1.16041]
[1753798513067,0.5863384,118260.0,118250.0,1.19482]
[1753798513370,0.5873384,118260.0,118250.0,1.19482]
[1753798513862,0.5150284,118260.0,118250.0,1.53296046]
[1753798514068,0.2688397,118260.0,118250.0,1.70210246]
[1753798514268,0.2224097,118260.0,118250.0,1.70210246]
[1753798514464,0.2680897,118260.0,118250.0,1.70210246]
[1753798514865,0.2224097,118260.0,118250.0,1.70210246]
[1753798515266,0.2224097,118260.0,118250.0,1.71496813]
[1753798517365,0.1801275,118260.0,118250.0,1.71496813]
[1753798520270,0.011,118260.0,118250.0,1.88409613]
[1753798521365,0.2113947,118270.0,118260.0,0.2728875]
[1753798521565,0.3213947,118270.0,118260.0,1.07460796]
[1753798522659,0.2993414,118280.0,118270.0,0.1691132]
[1753798522861,0.4293414,118280.0,118270.0,1.79943366]
[1753798523969,0.3836614,118280.0,118270.0,1.79943366]
[1753798524168,0.4293414,118280.0,118270.0,1.79943366]
[1753798525770,0.2124924,118290.0,118280.0,0.3740389]
[1753798525771,0.2993228,118290.0,118280.0,0.3740389]
[1753798525976,0.4093228,118290.0,118280.0,1.07297936]
[1753798526475,0.3636428,118290.0,118280.0,1.07297936]
[1753798527076,0.4093228,118290.0,118280.0,1.07297936]
[1753798527477,0.4093228,118290.0,118280.0,1.09025696]
[1753798528673,0.4093228,118290.0,118280.0,0.7521165]
[1753798528874,0.5795428,118290.0,118280.0,1.09025696]
[1753798529075,0.7229828,118290.0,118280.0,1.81617696]
[1753798529877,0.4410528,118290.0,118280.0,1.81617696]
[1753798530075,0.4093228,118290.0,118280.0,1.81617696]
[1753798531674,0.5795428,118290.0,118280.0,1.09025696]
[1753798531985,0.8401428,118290.0,118280.0,1.81601686]
[1753798532370,0.8401428,118290.0,118280.0,1.79869926]
[1753798534386,0.8401428,118290.0,118280.0,1.4605588]
[1753798534582,1.5697298,118290.0,118280.0,1.79869926]
[1753798534987,1.4979598,118290.0,118280.0,1.79869926]
[1753798536083,1.4525698,118290.0,118280.0,1.79869926]
[1753798536589,1.5243398,118290.0,118280.0,1.79869926]
[1753798540985,1.5243398,118290.0,118280.0,0.3608]
[1753798541186,1.5243398,118290.0,118280.0,1.08596]
[1753798542186,1.5243398,118290.0,118280.0,0.72516]
[1753798542382,1.5243398,118290.0,118280.0,1.08596]
[1753798544197,1.5243398,118290.0,118280.0,0.72516]
[1753798544903,1.54532645,118290.0,118280.0,0.72516]
[1753798545700,1.54532645,118290.0,118280.0,1.57478046]
[1753798545701,1.5243398,118290.0,118280.0,1.57478046]
[1753798548203,1.5243398,118290.0,118280.0,1.57450046]
[1753798548903,1.5243398,118290.0,118280.0,0.84962046]
[1753798549101,1.5243398,118290.0,118280.0,1.57434046]
[1753798551405,1.54536366,118290.0,118280.0,1.2362]
[1753798551590,1.54536366,118290.0,118280.0,1.57434046]
[1753798552201,0.2003929,118270.0,118260.0,0.91679872]
[1753798552405,0.7773229,118270.0,118260.0,0.04681]
[1753798552600,0.7773229,118270.0,118250.0,0.72904696]
[1753798552601,0.6473372,118260.0,118250.0,0.45388567]
[1753798552904,0.7573372,118260.0,118250.0,0.99973663]
[1753798553104,0.7573372,118260.0,118250.0,1.36053663]
[1753798554102,0.7573372,118260.0,118250.0,1.37245031]
[1753798554611,0.7573372,118260.0,118250.0,1.44291031]
[1753798554802,0.3585872,118260.0,118250.0,1.54048154]
[1753798555106,0.2791272,118260.0,118250.0,1.70962304]
[1753798556002,0.3273072,118260.0,118250.0,1.70962304]
[1753798556908,0.3273072,118260.0,118250.0,1.71162304]
[1753798557209,0.2791272,118260.0,118250.0,1.71162304]
[1753798557407,0.2791272,118260.0,118250.0,1.71362304]
[1753798559707,0.1691272,118260.0,118250.0,1.71362304]
[1753798560008,0.2791272,118260.0,118250.0,1.71362304]
[1753798561107,0.2536865,118270.0,118260.0,0.3732572]
[1753798561294,0.2536865,118270.0,118260.0,1.07204719]
[1753798561295,0.3736865,118270.0,118260.0,1.07204719]
[1753798561495,0.8518965,118270.0,118260.0,1.62695999]
[1753798562709,0.8518965,118270.0,118260.0,1.79608709]
[1753798562898,0.4531465,118270.0,118260.0,1.79608709]
[1753798563101,0.4218665,118270.0,118260.0,1.79608709]
[1753798563599,0.2595852,118270.0,118260.0,1.79708709]
[1753798564008,0.3795852,118270.0,118260.0,1.79708709]
[1753798564305,0.2113852,118280.0,118270.0,0.3732428]
[1753798564509,0.3113852,118280.0,118270.0,1.07203279]
[1753798564703,0.3413852,118280.0,118270.0,1.07203279]
[1753798565801,0.3895652,118280.0,118270.0,1.07203279]
[1753798566707,0.3905652,118280.0,118270.0,1.07203279]
[1753798567408,0.001,118280.0,118270.0,1.07203279]
[1753798567601,1.0255018,118290.0,118280.0,0.2693585]
[1753798567803,1.1414077,118290.0,118280.0,1.79561849]
[1753798569103,0.777767,118290.0,118280.0,1.79561849]
[1753798569298,0.839587,118290.0,118280.0,1.79561849]
[1753798569500,1.0186712,118290.0,118280.0,1.79561849]
[1753798569903,1.0668512,118290.0,118280.0,1.79561849]
[1753798571505,1.3114012,118290.0,118280.0,1.79561849]
[1753798571816,1.3114012,118290.0,118280.0,1.79529849]
[1753798572504,1.2410712,118290.0,118280.0,1.79529849]
[1753798572904,0.3372642,118290.0,118280.0,1.79529849]
[1753798573311,0.2172642,118290.0,118280.0,1.79529849]
[1753798573610,0.3272642,118290.0,118280.0,1.79529849]
[1753798574105,0.6356242,118290.0,118280.0,1.79529849]
[1753798574313,0.7558642,118290.0,118280.0,1.79529849]
[1753798575911,0.6827742,118290.0,118280.0,1.79497849]
[1753798576110,0.7558642,118290.0,118280.0,1.4569885]
[1753798576314,0.7558642,118290.0,118280.0,1.79497849]
[1753798577910,0.7558642,118290.0,118280.0,1.79481849]
[1753798579515,0.7558642,118290.0,118280.0,1.79481829]
[1753798579916,0.7558642,118290.0,118280.0,1.79465829]
[1753798580114,0.7558642,118290.0,118280.0,1.62555999]
[1753798581019,0.7558642,118290.0,118280.0,1.79465829]
[1753798581515,0.7558642,118290.0,118280.0,0.74559999]
[1753798581716,0.7558642,118290.0,118280.0,0.3608]
[1753798582020,0.6422282,118280.0,118270.0,0.3608]
[1753798582320,0.7522282,118280.0,118270.0,1.08328]
[1753798582723,0.7522282,118280.0,118270.0,0.3608]
[1753798582922,0.7522282,118280.0,118270.0,1.08324]
[1753798583115,0.7522282,118280.0,118270.0,1.0832]
[1753798583621,0.5298934,118290.0,118270.0,1.0842]